bitfinex-derivatives/quotes_ETHF0:USTF0_20251216
["timestamp","ask_amount","ask_price","bid_price","bid_amount"]
[1765852993710,1.4707,2956.2,2956.1,3.21091258]
[1765852995208,1.4707,2956.2,2956.1,0.00311258]
[1765852997515,4.6785,2956.4,2956.3,1.4159]
[1765852997915,1.4707,2956.4,2956.3,1.4159]
[1765852998508,1.1831,2956.5,2956.4,1.4159]
[1765852998814,0.4395,2956.5,2956.4,4.6237]
[1765852999213,1.9466628,2957.0,2956.9,0.7039]
[1765853000213,1.9466628,2957.0,2956.9,1.4159]
[1765853001014,1.9466628,2957.0,2956.9,0.7039]
[1765853002213,1.9466628,2957.0,2956.9,1.4159]
[1765853002214,0.0029628,2957.0,2956.9,1.4159]
[1765853002607,1.1860628,2957.0,2956.9,1.4159]
[1765853002814,1.9131628,2957.0,2956.9,0.7039]
[1765853003811,1.9131628,2957.0,2956.9,1.4159]
[1765853005211,1.1860628,2957.0,2956.9,1.4159]
[1765853005412,0.4424628,2957.0,2956.9,1.4159]
[1765853005716,1.1860628,2957.0,2956.9,1.4159]
[1765853006119,0.0029628,2957.0,2956.9,1.4159]
[1765853008818,0.0029628,2957.0,2956.9,42.2159]
[1765853009816,0.4395,2958.0,2957.1,1.4159]
[1765853010110,0.7271,2957.1,2957.0,4.6237]
[1765853010311,1.4707,2957.1,2957.0,4.6237]
[1765853010714,1.9102,2957.5,2957.4,0.7039]
[1765853010915,1.9102,2957.5,2957.0,3.2078]
[1765853011220,1.91351789,2957.5,2957.0,3.2078]
[1765853011421,0.7436,2957.1,2957.0,4.6237]
[1765853011821,1.4707,2957.1,2957.0,3.2078]
[1765853013325,1.4707,2957.1,2957.0,3.9198]
[1765853013619,1.92321789,2957.5,2957.4,0.712]
[1765853013821,1.92321789,2957.5,2957.4,1.4146]
[1765853015023,1.92321789,2957.5,2957.4,0.712]
[1765853015717,0.00331789,2957.5,2957.4,1.4146]
[1765853015924,0.00507321,2957.7,2957.6,1.4146]
[1765853016122,0.00507321,2957.7,2957.6,3.68082373]
[1765853016924,0.00771263,2957.7,2957.6,3.68082373]
[1765853023347,0.71411263,2957.7,2957.6,3.68082373]
[1765853023844,0.00771263,2957.7,2957.6,3.68082373]
[1765853027448,0.00771263,2957.7,2957.6,2.92319386]
[1765853028745,1.9199,2958.5,2957.7,0.16908]
[1765853028940,1.4804,2958.3,2958.2,1.50859386]
[1765853029143,1.4804,2958.3,2958.2,2.22059386]
[1765853029344,1.4804,2958.3,2958.2,0.712]
[1765853029652,1.9142,2958.0,2957.9,6.13087309]
[1765853029850,1.9142,2958.0,2957.9,6.13333441]
[1765853032451,1.9142,2958.0,2957.9,5.43073441]
[1765853033745,1.9142,2958.0,2957.9,6.13333441]
[1765853035050,0.4338,2958.0,2957.9,6.13333441]
[1765853035457,1.48354409,2958.3,2958.2,1.4146]
[1765853036151,1.48354409,2958.3,2958.2,0.712]
[1765853037058,0.4338,2958.0,2956.6,1.454]
[1765853037258,0.4338,2958.0,2957.0,1.1754]
[1765853037259,3.929,2957.1,2957.0,1.1754]
[1765853037457,3.929,2957.1,2957.0,0.424]
[1765853037652,0.3606,2956.6,2956.5,1.8156]
[1765853038054,4.1146,2956.6,2956.5,0.00306422]
[1765853038748,0.5581,2955.6,2955.5,7.1934]
[1765853038950,0.5581,2955.6,2955.5,2.6944]
[1765853039148,1.1162,2955.6,2955.5,1.1018]
[1765853039756,1.12038001,2955.6,2955.5,1.10466925]
[1765853039955,8.4e-05,2955.8,2955.7,1.454]
[1765853040158,0.71147321,2956.8,2956.0,0.4117]
[1765853040358,1.9142,2956.5,2956.4,3.9592]
[1765853040554,1.1402,2956.5,2956.4,4.6618]
[1765853040756,0.00507321,2956.8,2956.4,4.6618]
[1765853040951,1.48805852,2956.8,2956.7,0.7514]
[1765853042163,0.00765852,2956.8,2956.7,1.454]
[1765853042559,0.00765852,2956.8,2956.7,4.6618]
[1765853046158,0.91405852,2956.8,2956.7,4.6618]
[1765853046352,1.85495852,2956.8,2956.7,4.1915]
[1765853047258,1.85495852,2956.8,2956.7,0.9837]
[1765853047864,1.85495852,2956.8,2956.7,1.9144]
[1765853049465,0.00765852,2956.8,2956.7,1.9144]
[1765853050063,0.91405852,2956.8,2956.7,0.9837]
[1765853050261,1.8173,2955.6,2955.5,0.00286925]
[1765853050466,1.8173,2955.1,2954.5,0.5754]
[1765853050662,3.2078,2954.9,2954.5,0.6054]
[1765853051167,3.2078,2955.2,2955.1,1.9144]
[1765853051463,5.0499,2955.2,2955.1,0.98779728]
[1765853051867,5.0499,2955.2,2955.1,0.00409728]
[1765853055870,5.0499,2955.2,2954.5,0.5754]
[1765853055871,1.8473,2954.6,2954.5,0.5754]
[1765853056062,5.0551,2954.6,2954.5,1.5591]
[1765853056767,5.05768006,2954.6,2954.5,1.56175673]
[1765853057366,5.05768006,2954.6,2954.5,0.00265673]
[1765853059868,4.11678006,2954.6,2954.5,2.49245673]
[1765853060562,5.05768006,2954.6,2954.5,2.49245673]
[1765853060966,4.11678006,2954.6,2954.5,2.49245673]
[1765853062875,0.90898006,2954.6,2954.5,2.49245673]
[1765853063674,4.11678006,2954.6,2954.5,2.49245673]
[1765853063880,5.05768006,2954.6,2954.5,1.56175673]
[1765853064172,5.05768006,2954.6,2954.5,0.00265673]
[1765853064976,5.05768006,2954.6,2954.5,1.56175673]
[1765853065874,5.05768006,2954.6,2954.5,2.49245673]
[1765853066978,5.05768006,2954.6,2954.5,1.56175673]
[1765853067177,5.05768006,2954.6,2954.5,0.57805673]
[1765853067483,4.11678006,2954.6,2954.5,2.49245673]
[1765853067977,5.05768006,2954.6,2954.5,2.49245673]
[1765853069577,4.11678006,2954.6,2954.5,2.49245673]
[1765853070081,5.05768006,2954.6,2954.5,2.49245673]
[1765853070780,4.11678006,2954.6,2954.5,2.49245673]
[1765853071776,0.00258006,2954.6,2954.5,2.49245673]
[1765853073584,1.02928006,2954.6,2954.5,2.49245673]
[1765853073785,0.00258006,2954.6,2954.5,2.49245673]
[1765853074581,1.02928006,2954.6,2954.5,2.49245673]
[1765853074780,5.32418006,2954.6,2954.5,2.49245673]
[1765853075285,4.23708006,2954.6,2954.5,2.49245673]
[1765853076379,0.00258006,2954.6,2954.5,2.49245673]
[1765853076578,3.2078,2955.0,2954.9,2.1422]
[1765853076887,4.2345,2955.0,2954.9,2.1422]
[1765853077681,3.21136987,2955.0,2954.9,2.1422]
[1765853079485,4.1055676,2955.0,2954.9,2.1422]
[1765853081588,5.1322676,2955.0,2954.9,2.1422]
[1765853082487,6.2193676,2955.0,2954.9,2.1422]
[1765853082692,1.0267,2954.6,2954.5,2.72025673]
[1765853082892,2.1138,2954.6,2954.5,2.72025673]
[1765853083400,1.0267,2954.6,2954.5,2.72025673]
[1765853088500,3.21136987,2955.0,2954.5,2.72025673]
[1765853088697,2.99953005,2954.9,2954.8,1.0565]
[1765853089003,2.99953005,2954.9,2954.8,2.1422]
[1765853089501,2.0971,2954.9,2954.8,2.1422]
[1765853089702,4.23806987,2955.0,2954.9,2.1422]
[1765853089901,6.20057281,2955.0,2954.9,2.1422]
[1765853090297,5.29816987,2955.0,2954.9,2.1422]
[1765853090899,5.29816987,2955.0,2954.9,1.0565]
[1765853091099,6.20057281,2955.0,2954.5,0.57805673]
[1765853091295,5.29816987,2955.0,2954.5,0.57805673]
[1765853091901,5.29816987,2955.0,2954.9,1.0565]
[1765853092103,5.29816987,2955.0,2954.9,2.1422]
[1765853092502,5.29816987,2955.0,2954.9,1.0565]
[1765853092804,5.29816987,2955.0,2954.5,0.57805673]
[1765853093103,3.21136987,2955.0,2954.9,2.1422]
[1765853093903,5.25736987,2955.0,2954.9,2.1422]
[1765853094110,5.25736987,2955.0,2954.5,0.57805673]
[1765853095605,5.25736987,2955.0,2954.9,1.0565]
[1765853096204,5.25736987,2955.0,2954.9,2.1422]
[1765853097398,5.25736987,2955.0,2954.9,1.0565]
[1765853097595,5.25736987,2955.0,2954.9,2.1422]
[1765853098805,3.21136987,2955.0,2954.9,2.1422]
[1765853099699,0.00356987,2955.0,2954.9,2.1422]
[1765853099904,0.97256987,2955.0,2954.9,2.1422]
[1765853100406,0.97256987,2955.0,2954.5,2.72025673]
[1765853100407,0.959,2954.6,2954.5,2.72025673]
[1765853100602,3.21136987,2955.0,2954.5,2.72025673]
[1765853100799,3.21136987,2955.0,2954.9,2.1422]
[1765853100999,4.16046987,2955.0,2954.9,2.1422]
[1765853101198,5.10956987,2955.0,2954.9,2.1422]
[1765853101401,1.8883,2954.8,2954.7,2.1422]
[1765853101599,3.21136987,2955.0,2954.5,1.63455673]
[1765853101600,1.8784,2954.6,2954.5,1.63455673]
[1765853101811,1.8784,2954.6,2954.5,0.00265673]
[1765853103910,1.8784,2954.6,2954.5,0.53895673]
[1765853104209,1.8784,2954.6,2954.5,1.44805673]
[1765853104715,1.8488,2954.6,2954.5,0.53895673]
[1765853105310,3.2078,2954.7,2954.6,1.8561]
[1765853105510,3.2078,2954.7,2954.6,3.36812626]
[1765853105712,4.1174,2954.7,2954.6,3.36812626]
[1765853105912,5.0172,2954.7,2954.6,3.36812626]
[1765853106515,4.1174,2954.7,2954.6,3.36812626]
[1765853106916,3.2078,2954.7,2954.6,3.36812626]
[1765853107111,1.78376987,2955.0,2954.9,1.8561]
[1765853107316,0.00356987,2955.0,2954.9,1.8561]
[1765853108103,0.89366987,2955.0,2954.9,1.8561]
[1765853108304,1.77406987,2955.0,2954.5,0.53895673]
[1765853108509,1.7414,2954.6,2954.5,1.44805673]
[1765853108715,1.7414,2954.6,2954.5,2.39505673]
[1765853109416,0.8707,2954.6,2954.5,2.39505673]
[1765853110515,1.7414,2954.6,2954.5,0.00265673]
[1765853111716,1.7414,2954.6,2954.5,0.53895673]
[1765853114130,3.2078,2954.8,2954.7,1.8561]
[1765853114624,4.0307,2954.8,2954.7,1.8561]
[1765853115222,3.2078,2954.8,2954.7,1.8561]
[1765853115818,4.0118,2954.8,2954.7,1.8561]
[1765853116024,4.8158,2954.8,2954.7,1.8561]
[1765853116526,4.0118,2954.8,2954.7,1.8561]
[1765853116828,4.8064,2954.8,2954.7,1.8561]
[1765853117018,1.5892,2954.6,2954.5,1.44805673]
[1765853117219,1.5892,2954.6,2954.5,0.00265673]
[1765853117425,1.5892,2954.6,2954.5,2.39505673]
[1765853117723,1.5798,2954.6,2954.5,2.39505673]
[1765853118726,4.7876,2954.6,2954.5,2.39505673]
[1765853119723,4.769,2954.6,2954.5,2.39505673]
[1765853120828,4.769,2954.6,2954.5,1.44805673]
[1765853121320,4.769,2954.6,2954.5,2.39505673]
[1765853122519,0.7946,2954.6,2954.5,2.39505673]
[1765853122721,4.6854,2954.9,2954.8,0.9091]
[1765853122920,0.7388,2954.6,2954.5,2.39505673]
[1765853123822,4.6763,2954.9,2954.8,1.8561]
[1765853124228,1.4594,2954.6,2954.5,1.44805673]
[1765853124528,4.6672,2954.6,2954.5,0.53895673]
[1765853124730,4.6672,2954.6,2954.5,1.44805673]
[1765853124930,4.6672,2954.6,2954.5,2.39505673]
[1765853125227,0.7297,2954.6,2954.5,2.39505673]
[1765853125832,4.6397,2954.9,2954.8,1.8561]
[1765853126028,3.9283,2954.9,2954.8,1.8561]
[1765853126234,0.71496987,2955.0,2954.9,1.8561]
[1765853126529,1.42636987,2955.0,2954.9,1.8561]
[1765853126729,0.7023,2954.6,2954.5,2.39505673]
[1765853127734,0.00356987,2955.0,2954.5,2.39505673]
[1765853128638,1.3774,2954.6,2954.5,2.39505673]
[1765853128937,0.6932,2954.6,2954.5,2.39505673]
[1765853129331,0.00356987,2955.0,2954.5,2.39505673]
[1765853131338,1.35396987,2955.0,2954.9,0.9091]
[1765853131536,0.68776987,2955.0,2954.9,1.8561]
[1765853132241,1.34496987,2955.0,2954.9,1.8561]
[1765853133337,0.68776987,2955.0,2954.9,1.8561]
[1765853133534,0.00356987,2955.0,2954.9,1.8561]
[1765853134040,0.64316987,2955.0,2954.9,1.8561]
[1765853134945,0.00356987,2955.0,2954.9,1.8561]
[1765853135543,0.00356987,2955.0,2954.9,3.36775637]
[1765853136841,3.2078,2955.2,2955.1,1.6908]
[1765853137040,3.2078,2955.2,2955.1,3.20245637]
[1765853137545,3.2078,2955.2,2955.1,1.6908]
[1765853137736,3.21090466,2955.2,2955.1,1.6908]
[1765853137933,0.00310466,2955.2,2955.1,1.6908]
[1765853139342,4.66e-06,2955.2,2955.1,1.6908]
[1765853139846,4.66e-06,2955.2,2955.1,42.4908]
[1765853141050,4.66e-06,2955.2,2955.1,45.6986]
[1765853141352,3.2078,2955.8,2955.7,1.6908]
[1765853142351,3.80217918,2955.8,2955.7,1.6908]
[1765853143548,3.77707918,2955.8,2955.7,1.6908]
[1765853143954,3.21117918,2955.8,2955.7,1.6908]
[1765853144453,3.77707918,2955.8,2955.7,1.6908]
[1765853146158,3.21117918,2955.8,2955.7,1.6908]
[1765853146654,4.30027918,2955.8,2955.7,1.6908]
[1765853147151,1.0806,2955.6,2955.5,2.1911]
[1765853147353,1.0806,2955.6,2955.5,0.5003]
[1765853147660,1.0636,2955.2,2955.1,4.8986]
[1765853147856,0.5318,2955.2,2955.1,4.8986]
[1765853149254,0.5318,2955.2,2955.1,1.6908]
[1765853149655,1.0636,2955.2,2955.1,1.6908]
[1765853152157,0.9962,2955.1,2955.0,0.5003]
[1765853152559,0.9962,2955.1,2955.0,1.3821]
[1765853152760,4.1874,2955.3,2955.2,1.6908]
[1765853152959,0.9796,2955.1,2955.0,1.3821]
[1765853153258,0.4898,2955.1,2955.0,2.1911]
[1765853153457,3.6976,2955.3,2955.2,1.6908]
[1765853153657,4.1874,2955.3,2955.2,1.6908]
[1765853154059,4.1874,2955.3,2955.2,0.8818]
[1765853155866,4.1874,2955.3,2955.2,1.6908]
[1765853158372,3.6976,2955.3,2955.2,1.6908]
[1765853158668,4.146,2955.3,2955.2,1.6908]
[1765853158864,4.146,2955.3,2955.2,0.8818]
[1765853159171,0.8806,2955.1,2955.0,2.1911]
[1765853159468,0.4403,2955.1,2955.0,2.1911]
[1765853161475,3.2078,2955.3,2955.2,1.6908]
[1765853161671,0.00337918,2955.8,2955.5,2.1911]
[1765853161672,3.2078,2955.6,2955.5,2.1911]
[1765853161972,3.6237,2955.6,2955.5,2.1911]
[1765853162670,4.0392,2955.6,2955.5,1.9812]
[1765853164365,3.2078,2955.6,2955.5,1.9812]
[1765853164569,3.2078,2955.6,2955.5,3.49277637]
[1765853165364,0.39467918,2955.8,2955.7,1.4809]
[1765853168368,0.7348,2955.1,2955.0,0.5003]
[1765853168679,0.719,2954.6,2954.5,2.01985673]
[1765853168866,3.9268,2954.8,2954.7,1.4809]
[1765853169375,0.719,2954.8,2954.7,1.4809]
[1765853169573,0.3595,2954.8,2954.7,1.4809]
[1765853169871,0.7111,2954.8,2954.7,1.4809]
[1765853170877,0.3595,2954.8,2954.7,1.4809]
[1765853171377,3.8954,2955.1,2955.0,1.2126]
[1765853172572,3.8954,2955.1,2955.0,0.4793]
[1765853173071,3.8954,2955.1,2955.0,1.2126]
[1765853173879,3.8954,2955.1,2955.0,0.4793]
[1765853174974,3.8954,2955.1,2955.0,1.2126]
[1765853176480,3.2078,2955.1,2955.0,1.9602]
[1765853176679,3.5278,2955.1,2955.0,1.9602]
[1765853176879,3.8478,2955.1,2955.0,1.9602]
[1765853180783,3.8478,2955.1,2955.0,0.4793]
[1765853181779,0.64,2954.6,2954.5,2.01985673]
[1765853181986,0.64,2954.6,2954.5,1.46225673]
[1765853182377,0.64,2954.6,2954.5,2.20985673]
[1765853182578,0.32,2954.6,2954.5,2.20985673]
[1765853182777,3.2078,2955.0,2954.9,1.4809]
[1765853184175,3.2078,2955.4,2955.3,0.7476]
[1765853184480,3.2078,2955.4,2955.3,2.99247637]
[1765853184682,4.7019,2955.4,2955.0,1.93187637]
[1765853184883,4.7019,2955.4,2955.3,0.7333]
[1765853185079,1.4941,2955.4,2955.3,0.7333]
[1765853185683,1.4941,2955.4,2955.3,1.4809]
[1765853186589,0.76,2955.4,2955.3,1.4809]
[1765853186777,1.4941,2955.4,2955.3,1.4809]
[1765853188190,1.4941,2955.1,2955.0,0.7333]
[1765853188387,1.4941,2954.9,2954.8,3.9411]
[1765853188690,1.4941,2954.9,2954.8,3.2078]
[1765853189895,1.4941,2954.9,2954.8,3.9411]
[1765853190097,1.4941,2954.9,2954.8,4.6887]
[1765853191995,1.4941,2954.9,2954.8,3.2078]
[1765853192701,1.4941,2954.9,2954.8,4.0761]
[1765853193202,0.76,2954.9,2954.8,4.972]
[1765853193602,1.6,2954.9,2954.8,4.972]
[1765853195501,1.6,2954.9,2954.8,1.7642]
[1765853197011,1.6,2954.9,2954.8,0.8683]
[1765853197306,0.8383,2954.6,2954.5,5.24855673]
[1765853197510,1.6783,2954.6,2954.5,5.24855673]
[1765853197913,1.6783,2954.6,2954.5,1.73645673]
[1765853198119,1.6783,2954.6,2954.5,0.00265673]
[1765853198711,1.6783,2954.6,2954.5,0.84055673]
[1765853200813,1.6783,2954.6,2954.5,1.73645673]
[1765853202112,4.8861,2954.9,2954.8,1.7338]
[1765853202614,4.8861,2954.9,2954.8,0.8379]
[1765853203914,0.8383,2954.6,2954.5,1.96805673]
[1765853204109,1.6783,2954.6,2954.5,1.73645673]
[1765853204317,1.6783,2954.6,2954.5,0.84055673]
[1765853205419,1.6783,2954.6,2954.5,1.73645673]
[1765853205717,0.8383,2954.6,2954.5,1.73645673]
[1765853205919,4.8861,2954.9,2954.8,1.7338]
[1765853207317,4.8861,2954.9,2954.8,0.8379]
[1765853207615,0.8383,2954.6,2954.5,1.93345673]
[1765853208415,3.2078,2954.9,2954.5,1.09555673]
[1765853208618,1.6783,2954.6,2954.5,1.93345673]
[1765853208913,0.8383,2954.6,2954.5,1.93345673]
[1765853209111,1.6783,2954.4,2954.3,0.00507321]
[1765853209318,1.6783,2953.6,2953.5,2.2582]
[1765853209519,4.8861,2953.9,2953.8,1.7338]
[1765853209707,3.2078,2954.3,2953.8,1.7338]
[1765853209908,0.8383,2953.9,2953.8,1.7338]
[1765853210314,0.84117417,2953.9,2953.8,1.73799715]
[1765853212221,0.00287417,2953.9,2953.8,1.73799715]
[1765853212519,0.00507321,2954.1,2953.8,1.73799715]
[1765853212520,0.00507321,2954.1,2954.0,2.2582]
[1765853212715,0.8383,2954.6,2954.5,2.2582]
[1765853212916,4.8861,2954.9,2954.8,1.7338]
[1765853213525,1.6783,2954.7,2954.6,1.7338]
[1765853214524,4.04881577,2954.9,2954.8,1.7338]
[1765853214720,4.04881577,2954.9,2954.8,3.24591707]
[1765853215222,0.84101577,2954.9,2954.8,3.24591707]
[1765853216227,1.6783,2954.3,2954.2,4.0457]
[1765853216524,0.8383,2954.3,2954.2,4.9416]
[1765853216817,1.68101577,2954.9,2954.8,0.8379]
[1765853217018,1.68101577,2954.9,2954.8,1.7338]
[1765853217222,1.68101577,2954.9,2954.8,0.8379]
[1765853218524,1.6783,2954.7,2954.6,0.8379]
[1765853218724,1.6783,2954.6,2954.5,1.3623]
[1765853218925,1.6783,2954.6,2954.5,0.8379]
[1765853219127,1.6783,2954.6,2954.5,2.2582]
[1765853219524,0.8383,2954.6,2954.5,2.2582]
[1765853220528,4.88881577,2954.9,2954.8,1.7338]
[1765853221130,1.68101577,2954.9,2954.8,3.24591707]
[1765853221330,0.84101577,2954.9,2954.8,3.24591707]
[1765853221823,1.68101577,2954.9,2954.8,3.24591707]
[1765853222327,0.84101577,2954.9,2954.8,3.24591707]
[1765853222527,0.00271577,2954.9,2954.8,1.7338]
[1765853222721,1.577e-05,2954.9,2954.8,7.5916]
[1765853222924,1.577e-05,2954.9,2954.8,4.3838]
[1765853223133,1.577e-05,2954.9,2954.8,7.5916]
[1765853223625,4.7933,2955.8,2955.7,1.7025]
[1765853223825,3.2078,2955.8,2955.7,3.21461707]
[1765853224328,4.0071,2955.8,2955.7,3.21461707]
[1765853224521,0.8035724,2955.8,2955.7,3.21461707]
[1765853225433,0.8035724,2955.8,2955.7,1.7025]
[1765853226536,1.5897724,2955.8,2955.7,1.7025]
[1765853226829,1.5897724,2955.8,2955.7,0.8503]
[1765853227531,1.5897724,2955.8,2955.7,1.7025]
[1765853228819,0.8035724,2955.8,2955.7,1.7025]
[1765853229025,0.0042724,2955.8,2955.7,1.7025]
[1765853230442,1.5897724,2955.8,2955.7,1.7025]
[1765853230922,0.8035724,2955.8,2955.7,1.7025]
[1765853232538,1.5855,2955.6,2955.5,4.06317321]
[1765853232742,1.5855,2955.6,2955.5,4.91537321]
[1765853233236,0.8035724,2955.8,2955.7,1.7025]
[1765853233439,1.5897724,2955.8,2955.7,1.7025]
[1765853233737,1.5897724,2955.8,2955.7,0.8503]
[1765853235127,1.5897724,2955.8,2955.7,1.7025]
[1765853235323,1.5897724,2955.8,2955.7,0.8503]
[1765853237941,1.5897724,2955.8,2955.7,1.7025]
[1765853238839,1.5855,2955.6,2955.5,0.00507321]
[1765853240336,1.5855,2955.6,2955.1,3.2078]
[1765853240337,1.5855,2955.2,2955.1,3.2078]
[1765853240839,1.5855,2955.2,2955.1,4.0581]
[1765853241435,1.5855,2955.2,2955.1,4.9103]
[1765853242241,1.5855,2955.2,2955.1,3.2078]
[1765853242635,0.4272,2955.5,2954.9,0.00507321]
[1765853242636,2.0523,2955.0,2954.9,0.00507321]
[1765853244135,2.0523,2955.0,2954.9,0.85537321]
[1765853245036,1.5855,2954.6,2954.5,3.2078]
[1765853245336,1.5855,2954.3,2954.2,6.42289283]
[1765853245538,0.7993,2954.3,2954.2,6.59289283]
[1765853245734,1.5855,2954.3,2954.2,6.59289283]
[1765853245937,1.5855,2954.3,2954.2,5.0803]
[1765853246242,1.5855,2954.3,2954.2,4.9103]
[1765853247845,0.7993,2954.3,2954.2,1.7025]
[1765853248042,1.5855,2954.3,2954.2,1.7025]
[1765853248548,4.7933,2954.7,2954.6,1.7025]
[1765853248841,4.7933,2954.7,2954.6,0.8503]
[1765853249443,1.5855,2954.5,2954.4,3.21509283]
[1765853252038,1.45717321,2954.9,2954.8,1.4867]
[1765853252344,1.45717321,2954.9,2954.8,2.99929283]
[1765853252742,1.45717321,2954.9,2954.8,1.4867]
[1765853252939,1.4403,2954.5,2954.4,2.25849283]
[1765853253144,0.7175,2954.5,2954.4,3.03339283]
[1765853254235,0.72257321,2954.9,2954.8,1.5208]
[1765853254440,0.72257321,2954.9,2954.8,3.03339283]
[1765853254641,1.44537321,2954.9,2954.8,3.03339283]
[1765853254848,1.4403,2954.6,2954.5,0.432]
[1765853255145,1.4403,2954.6,2954.5,1.9528]
[1765853255748,0.7175,2954.6,2954.5,1.9528]
[1765853257146,1.44537321,2954.9,2954.8,0.7459]
[1765853258351,1.44537321,2954.9,2954.8,1.5208]
[1765853259044,1.44537321,2954.9,2954.8,3.03314286]
[1765853259240,0.00507321,2954.9,2954.8,3.03314286]
[1765853259445,0.00507321,2954.9,2954.8,6.24094286]
[1765853260452,3.2078,2955.3,2954.8,9.04094286]
[1765853260651,3.2078,2955.3,2955.2,3.03314286]
[1765853261447,3.2078,2955.3,2955.2,1.5208]
[1765853263644,1.44537321,2955.5,2955.4,1.5208]
[1765853265047,0.00507321,2955.5,2955.4,1.5208]
[1765853266956,0.0042724,2955.8,2955.7,1.5208]
[1765853267258,0.0042724,2955.8,2955.7,4.7286]
[1765853269264,0.0042724,2955.8,2955.7,45.5286]
[1765853274156,3.9253,2956.8,2956.7,1.5208]
[1765853274460,1.4403,2957.1,2957.0,1.9528]
[1765853274654,0.7175,2957.1,2957.0,1.9528]
[1765853275049,0.72074176,2957.1,2957.0,1.95705473]
[1765853275247,0.00324176,2957.1,2957.0,1.95705473]
[1765853278260,1.44354176,2957.1,2957.0,5.16485473]
[1765853278458,1.4403,2956.9,2956.8,0.00507321]
[1765853279464,1.4403,2956.9,2956.8,0.7534629]
[1765853280058,1.4403,2956.9,2956.8,0.0075629]
[1765853280258,1.4403,2956.9,2956.8,1.5283629]
[1765853280862,0.7175,2956.9,2956.8,1.5283629]
[1765853281063,1.4403,2956.9,2956.8,1.5283629]
[1765853281465,0.7175,2956.9,2956.8,1.5283629]
[1765853281767,0.00324176,2957.1,2956.8,1.5283629]
[1765853281768,1.44354176,2957.1,2957.0,1.9528]
[1765853284769,1.4684,2956.9,2956.8,1.4791629]
[1765853284970,1.4684,2956.9,2956.8,0.7342629]
[1765853285381,1.4684,2956.9,2956.8,0.0075629]
[1765853287273,1.4684,2956.4,2956.3,3.9345]
[1765853287675,1.4684,2956.4,2956.3,4.6794]
[1765853287881,1.4684,2956.1,2956.0,3.2078]
[1765853288280,1.4684,2956.1,2956.0,3.21196628]
[1765853289077,1.4684,2956.1,2956.0,3.93866628]
[1765853289294,1.4684,2956.1,2956.0,5.11256628]
[1765853289777,1.4684,2956.1,2956.0,3.21196628]
[1765853289977,1.4684,2956.1,2956.0,0.73086628]
[1765853290988,1.4684,2956.1,2956.0,1.47576628]
[1765853291184,1.4684,2956.6,2956.5,0.7267]
[1765853291391,1.4684,2956.6,2956.5,1.9006]
[1765853292588,0.7686,2956.6,2956.5,1.9006]
[1765853292886,4.6762,2956.9,2956.8,1.4716]
[1765853293092,1.4684,2956.6,2956.5,1.9006]
[1765853293293,0.7686,2956.6,2956.5,1.9006]
[1765853293481,1.4684,2956.6,2956.5,1.9006]
[1765853293688,3.2078,2956.9,2956.8,1.4716]
[1765853293880,3.9764,2956.9,2956.8,1.4716]
[1765853294190,4.6762,2956.9,2956.8,1.4716]
[1765853294994,1.4684,2956.9,2956.8,1.4716]
[1765853295696,0.00507321,2957.3,2957.0,1.9006]
[1765853296091,1.47164176,2957.1,2957.0,1.9006]
[1765853296698,0.00324176,2957.1,2957.0,1.9006]
[1765853297101,1.47164176,2957.1,2957.0,1.9006]
[1765853297999,0.77184176,2957.1,2957.0,1.9006]
[1765853298499,0.00324176,2957.1,2957.0,1.9006]
[1765853299002,1.47164176,2957.1,2957.0,1.9006]
[1765853299193,1.47164176,2957.1,2957.0,1.1557]
[1765853299500,1.47164176,2957.1,2957.0,1.9006]
[1765853299691,1.4684,2956.9,2956.8,4.6794]
[1765853299892,1.4684,2956.9,2956.8,3.9345]
[1765853300493,1.4684,2956.9,2956.8,4.6794]
[1765853301490,1.4684,2956.9,2956.8,1.4716]
[1765853301697,1.4684,2956.9,2956.8,4.6794]
[1765853302504,0.7686,2956.9,2956.8,4.6794]
[1765853302912,1.4684,2956.9,2956.8,4.6794]
[1765853303700,1.4684,2956.9,2956.8,1.4716]
[1765853303898,1.4684,2956.6,2956.5,1.9006]
[1765853304093,1.4684,2956.6,2956.5,0.7267]
[1765853304404,3.9764,2956.7,2956.6,1.4716]
[1765853304606,4.6762,2956.7,2956.6,1.4716]
[1765853308704,4.6762,2956.7,2956.1,3.2078]
[1765853309806,4.6762,2956.7,2956.6,0.7267]
[1765853310107,4.6762,2956.7,2956.6,1.4716]
[1765853310807,4.6762,2956.7,2956.6,0.7267]
[1765853312203,3.9764,2956.7,2956.6,1.4416]
[1765853312408,3.2078,2956.7,2956.6,1.4416]
[1765853313108,3.9236,2957.0,2956.5,0.429]
[1765853313302,3.2078,2957.0,2956.9,1.4389]
[1765853313898,0.439,2956.5,2955.2,1.88891547]
[1765853314106,5.56979723,2957.0,2955.0,0.46]
[1765853314107,3.2078,2955.4,2955.0,0.46]
[1765853314310,3.2078,2955.1,2955.0,0.17683352]
[1765853314511,3.2078,2955.1,2955.0,1.61573352]
[1765853314707,3.2078,2955.4,2955.3,1.4389]
[1765853315004,3.2078,2955.4,2955.3,1.44169125]
[1765853316206,3.2078,2955.4,2955.3,0.00279125]
[1765853317816,3.2078,2955.4,2953.7,2.73524881]
[1765853317817,0.16926,2954.7,2954.0,0.4461818]
[1765853318007,3.2078,2954.1,2954.0,0.4461818]
[1765853318306,3.2078,2954.1,2953.0,0.46]
[1765853318612,3.2078,2953.6,2953.0,0.46]
[1765853318813,3.21060898,2953.6,2953.0,0.46]
[1765853319113,3.2078,2953.1,2953.0,0.46]
[1765853319907,3.2078,2953.1,2953.0,0.4631251]
[1765853323518,3.2078,2953.1,2953.0,1.9020251]
[1765853326019,3.2078,2953.5,2953.4,1.4389]
[1765853330223,0.00280898,2953.6,2953.5,1.8989]
[1765853330612,0.7158,2953.2,2953.1,1.4389]
[1765853330816,0.00280898,2953.6,2953.1,1.4389]
[1765853331117,1.45060898,2953.6,2953.5,1.184]
[1765853331417,0.71860898,2953.6,2953.5,1.8989]
[1765853331623,1.45060898,2953.6,2953.5,1.8989]